[Event "*** MasterClass Titled Tuesday Blitz"]
[Site "Chess.com"]
[Date "2017.12.12"]
[Round "7"]
[White "Annawel"]
[Black "Noukii"]
[Result "1-0"]
[WhiteElo "2741"]
[BlackElo "2607"]
[TimeControl "180+2"]
[EndTime "14:39:50 PST"]
[Termination "Annawel won by resignation"]

1. e4 {[%clk 0:03:00.9]} 1... e5 {[%clk 0:02:57.3]} 2. Nc3 {[%clk 0:03:00]} 2...
Nf6 {[%clk 0:02:57.8]} 3. g3 {[%clk 0:03:00.6]} 3... c6 {[%clk 0:02:57]} 4. Bg2
{[%clk 0:03:00.9]} 4... d5 {[%clk 0:02:57.8]} 5. d3 {[%clk 0:02:56.7]} 5... dxe4
{[%clk 0:02:57.2]} 6. Nxe4 {[%clk 0:02:57.6]} 6... Nxe4 {[%clk 0:02:58.6]} 7.
Bxe4 {[%clk 0:02:58.4]} 7... Bb4+ {[%clk 0:02:54.4]} 8. Bd2 {[%clk 0:02:52.4]}
8... Bxd2+ {[%clk 0:02:55.3]} 9. Qxd2 {[%clk 0:02:54.3]} 9... O-O {[%clk
0:02:55.6]} 10. Bg2 {[%clk 0:02:49.4]} 10... Re8 {[%clk 0:02:45.4]} 11. Ne2
{[%clk 0:02:43.3]} 11... Nd7 {[%clk 0:02:45]} 12. O-O {[%clk 0:02:43.9]} 12...
Nf6 {[%clk 0:02:46.4]} 13. Rad1 {[%clk 0:02:38.2]} 13... Bf5 {[%clk 0:02:27.4]}
14. Rfe1 {[%clk 0:02:37.9]} 14... Qb6 {[%clk 0:02:25]} 15. Qc3 {[%clk
0:02:31.1]} 15... Rad8 {[%clk 0:02:23.7]} 16. Qb3 {[%clk 0:02:19.1]} 16... Qxb3
{[%clk 0:01:57]} 17. axb3 {[%clk 0:02:21]} 17... Nd5 {[%clk 0:01:58.3]} 18. Ra1
{[%clk 0:02:17.9]} 18... Nb4 {[%clk 0:01:51.4]} 19. Rec1 {[%clk 0:02:18.7]}
19... Ra8 {[%clk 0:01:41.6]} 20. Nc3 {[%clk 0:02:11.3]} 20... f6 {[%clk
0:01:33.2]} 21. Nd1 {[%clk 0:01:40.1]} 21... Red8 {[%clk 0:01:26.5]} 22. Ne3
{[%clk 0:01:41.2]} 22... Be6 {[%clk 0:01:27.7]} 23. Ra4 {[%clk 0:01:40.5]} 23...
Nd5 {[%clk 0:01:24.1]} 24. Rca1 {[%clk 0:01:24.7]} 24... Nxe3 {[%clk 0:01:22]}
25. fxe3 {[%clk 0:01:26.6]} 25... a6 {[%clk 0:01:23.5]} 26. Kf2 {[%clk
0:01:19.7]} 26... Kf7 {[%clk 0:01:23.8]} 27. Rb4 {[%clk 0:01:19]} 27... b5
{[%clk 0:01:19.6]} 28. Bxc6 {[%clk 0:01:01.5]} 28... Rac8 {[%clk 0:01:20.1]} 29.
Rxa6 {[%clk 0:01:03]} 29... Rd6 {[%clk 0:01:21.1]} 30. Be8+ {[%clk 0:01:03.5]}
30... Ke7 {[%clk 0:01:21.5]} 31. Rxd6 {[%clk 0:01:05.2]} 31... Rxc2+ {[%clk
0:01:22.4]} 32. Kf3 {[%clk 0:00:57.3]} 32... Kxd6 {[%clk 0:01:23.7]} 33. Rxb5
{[%clk 0:00:58.3]} 33... Rxb2 {[%clk 0:01:08]} 34. Rb6+ {[%clk 0:00:48.7]} 34...
Ke7 {[%clk 0:01:07.3]} 35. Ba4 {[%clk 0:00:50.1]} 35... h5 {[%clk 0:00:51.3]}
36. Ke4 {[%clk 0:00:39.6]} 36... Rd2 {[%clk 0:00:47.4]} 37. Rb7+ {[%clk
0:00:31.5]} 37... Kd6 {[%clk 0:00:48.1]} 38. Rb6+ {[%clk 0:00:32.8]} 38... Ke7
{[%clk 0:00:44.2]} 39. h4 {[%clk 0:00:34.1]} 39... Bg8 {[%clk 0:00:22.6]} 40.
Rb7+ {[%clk 0:00:23.8]} 40... Ke6 {[%clk 0:00:19.5]} 41. Rxg7 {[%clk 0:00:20.8]}
41... f5+ {[%clk 0:00:20.2]} 42. Kf3 {[%clk 0:00:22.3]} 42... Bf7 {[%clk
0:00:19.4]} 43. Bd7+ {[%clk 0:00:12.9]} 43... Kf6 {[%clk 0:00:20]} 44. Rg5
{[%clk 0:00:14.3]} 44... Bg6 {[%clk 0:00:20.9]} 45. Bc6 {[%clk 0:00:07.6]} 45...
Rxd3 {[%clk 0:00:19.2]} 46. b4 {[%clk 0:00:08.5]} 46... Rd2 {[%clk 0:00:16.8]}
47. e4 {[%clk 0:00:09.9]} 47... Rd3+ {[%clk 0:00:17.1]} 48. Ke2 {[%clk
0:00:10.8]} 48... fxe4 {[%clk 0:00:19]} 49. Rxg6+ {[%clk 0:00:11.6]} 1-0

[Event "*** MasterClass Titled Tuesday Blitz"]
[Site "Chess.com"]
[Date "2017.12.12"]
[Round "7"]
[White "Alliswell998"]
[Black "mazetofonias"]
[Result "1-0"]
[WhiteElo "2356"]
[BlackElo "2457"]
[TimeControl "180+2"]
[EndTime "14:39:51 PST"]
[Termination "Alliswell998 won by resignation"]

1. e4 {[%clk 0:02:48.7]} 1... c5 {[%clk 0:03:00.2]} 2. Nc3 {[%clk 0:02:49.3]}
2... Nc6 {[%clk 0:02:59.8]} 3. f4 {[%clk 0:02:50.7]} 3... g6 {[%clk 0:03:00.3]}
4. Nf3 {[%clk 0:02:52.1]} 4... Bg7 {[%clk 0:03:01.8]} 5. Bb5 {[%clk 0:02:53.7]}
5... Nd4 {[%clk 0:03:02.7]} 6. O-O {[%clk 0:02:55.2]} 6... e6 {[%clk 0:02:58.6]}
7. e5 {[%clk 0:02:55.8]} 7... Ne7 {[%clk 0:02:55.3]} 8. Nxd4 {[%clk 0:02:54.4]}
8... cxd4 {[%clk 0:02:55.7]} 9. Ne4 {[%clk 0:02:56]} 9... O-O {[%clk 0:02:57.2]}
10. b3 {[%clk 0:02:50.6]} 10... d5 {[%clk 0:02:45.4]} 11. Nd6 {[%clk 0:02:50.2]}
11... f6 {[%clk 0:02:41]} 12. Qe1 {[%clk 0:02:34.2]} 12... fxe5 {[%clk
0:02:40.1]} 13. fxe5 {[%clk 0:02:36.1]} 13... Rxf1+ {[%clk 0:02:39.3]} 14. Bxf1
{[%clk 0:02:38]} 14... Nc6 {[%clk 0:02:37.2]} 15. Ba3 {[%clk 0:02:15.6]} 15...
Bxe5 {[%clk 0:02:07.7]} 16. Nxc8 {[%clk 0:01:08.8]} 16... Rxc8 {[%clk
0:02:09.6]} 17. Bd3 {[%clk 0:01:02]} 17... a6 {[%clk 0:02:06]} 18. Qf2 {[%clk
0:00:58.8]} 18... Qf6 {[%clk 0:02:02.8]} 19. Qe2 {[%clk 0:00:58.1]} 19... Re8
{[%clk 0:01:44.5]} 20. Rf1 {[%clk 0:00:58.8]} 20... Qg7 {[%clk 0:01:44.6]} 21.
Qf3 {[%clk 0:00:53.7]} 21... Bc7 {[%clk 0:01:40.9]} 22. Qf2 {[%clk 0:00:53.5]}
22... e5 {[%clk 0:01:37.6]} 23. Be2 {[%clk 0:00:52.1]} 23... e4 {[%clk
0:01:36.8]} 24. Kh1 {[%clk 0:00:50.2]} 24... Ne5 {[%clk 0:01:37.5]} 25. Bb2
{[%clk 0:00:41.9]} 25... Nc6 {[%clk 0:01:38.3]} 26. Bg4 {[%clk 0:00:41.4]} 26...
Bd6 {[%clk 0:01:30.3]} 27. Qh4 {[%clk 0:00:38.4]} 27... Kh8 {[%clk 0:01:24.3]}
28. Qh3 {[%clk 0:00:38.9]} 28... Rf8 {[%clk 0:01:23.9]} 29. g3 {[%clk
0:00:38.5]} 29... Rf6 {[%clk 0:00:55.3]} 30. Be6 {[%clk 0:00:29.6]} 30... Qf8
{[%clk 0:00:35.6]} 31. Rxf6 {[%clk 0:00:24.8]} 31... Qxf6 {[%clk 0:00:37.5]} 32.
Bxd5 {[%clk 0:00:25.3]} 32... Qf3+ {[%clk 0:00:05.4]} 33. Qg2 {[%clk 0:00:25.4]}
33... Qd1+ {[%clk 0:00:06.9]} 34. Qg1 {[%clk 0:00:26.4]} 34... Qf3+ {[%clk
0:00:08.5]} 35. Qg2 {[%clk 0:00:27.6]} 35... Qd1+ {[%clk 0:00:10.1]} 36. Qg1
{[%clk 0:00:28.6]} 36... Qxd2 {[%clk 0:00:11.2]} 37. Bxe4 {[%clk 0:00:26.9]}
37... Be5 {[%clk 0:00:11.3]} 38. Bc1 {[%clk 0:00:17.5]} 38... Qc3 {[%clk
0:00:10.5]} 39. Bg5 {[%clk 0:00:16.2]} 39... Kg7 {[%clk 0:00:11.1]} 40. Qf2
{[%clk 0:00:16.8]} 40... Qc5 {[%clk 0:00:11.5]} 41. Kg2 {[%clk 0:00:17]} 41...
Qe7 {[%clk 0:00:12.2]} 42. Bxe7 {[%clk 0:00:17.5]} 42... Nxe7 {[%clk 0:00:13.3]}
43. Bxb7 {[%clk 0:00:17.4]} 43... Bf6 {[%clk 0:00:14.2]} 44. Bxa6 {[%clk
0:00:18.2]} 44... Nf5 {[%clk 0:00:15.4]} 45. Bd3 {[%clk 0:00:17.3]} 45... Ne3+
{[%clk 0:00:17.3]} 46. Kg1 {[%clk 0:00:18]} 46... Bg5 {[%clk 0:00:17.3]} 47. h4
{[%clk 0:00:17.7]} 47... Bh6 {[%clk 0:00:16.4]} 48. Kh1 {[%clk 0:00:19.2]} 48...
g5 {[%clk 0:00:13.8]} 49. hxg5 {[%clk 0:00:19.6]} 49... Bxg5 {[%clk 0:00:15.7]}
50. a4 {[%clk 0:00:21.1]} 50... Ng4 {[%clk 0:00:15.1]} 51. Qe2 {[%clk
0:00:20.9]} 51... h5 {[%clk 0:00:14.4]} 52. a5 {[%clk 0:00:21.7]} 52... Be3
{[%clk 0:00:15.4]} 53. a6 {[%clk 0:00:22.5]} 53... Nf2+ {[%clk 0:00:17.3]} 54.
Kg2 {[%clk 0:00:23.5]} 1-0

[Event "*** MasterClass Titled Tuesday Blitz"]
[Site "Chess.com"]
[Date "2017.12.12"]
[Round "7"]
[White "lucasmito"]
[Black "AkshatChandra"]
[Result "0-1"]
[WhiteElo "2243"]
[BlackElo "2710"]
[TimeControl "180+2"]
[EndTime "14:39:56 PST"]
[Termination "AkshatChandra won by resignation"]

1. e4 {[%clk 0:03:01.9]} 1... b6 {[%clk 0:03:00.7]} 2. d4 {[%clk 0:03:02.2]}
2... Bb7 {[%clk 0:03:02.4]} 3. Nc3 {[%clk 0:03:02.5]} 3... e6 {[%clk 0:03:04.2]}
4. a3 {[%clk 0:02:55.6]} 4... Nf6 {[%clk 0:03:02.3]} 5. Bd3 {[%clk 0:02:55.6]}
5... d5 {[%clk 0:03:03.1]} 6. e5 {[%clk 0:02:40.3]} 6... Nfd7 {[%clk 0:03:03.7]}
7. f4 {[%clk 0:02:30.6]} 7... c5 {[%clk 0:03:04.3]} 8. Nf3 {[%clk 0:02:26.5]}
8... Nc6 {[%clk 0:03:05.2]} 9. Be3 {[%clk 0:02:24.8]} 9... Be7 {[%clk
0:03:02.4]} 10. Qd2 {[%clk 0:02:16.4]} 10... O-O {[%clk 0:02:54.9]} 11. O-O
{[%clk 0:02:13.8]} 11... f5 {[%clk 0:02:51.9]} 12. exf6 {[%clk 0:01:43.4]} 12...
Nxf6 {[%clk 0:02:21]} 13. h3 {[%clk 0:01:28.5]} 13... Bd6 {[%clk 0:02:16.5]} 14.
Nb5 {[%clk 0:01:14.5]} 14... c4 {[%clk 0:01:40.3]} 15. Nxd6 {[%clk 0:00:57.6]}
15... Qxd6 {[%clk 0:01:42.2]} 16. Be2 {[%clk 0:00:57.1]} 16... Ne4 {[%clk
0:01:37.4]} 17. Qe1 {[%clk 0:00:57.7]} 17... b5 {[%clk 0:01:38.5]} 18. Ne5
{[%clk 0:00:56.5]} 18... a5 {[%clk 0:01:33]} 19. Bf3 {[%clk 0:00:45.5]} 19...
Ne7 {[%clk 0:01:25.4]} 20. Bxe4 {[%clk 0:00:38.6]} 20... dxe4 {[%clk 0:01:25.3]}
21. c3 {[%clk 0:00:39.9]} 21... Qd5 {[%clk 0:01:13.6]} 22. Qe2 {[%clk
0:00:37.9]} 22... Nf5 {[%clk 0:01:14.3]} 23. a4 {[%clk 0:00:31.6]} 23... Ng3
{[%clk 0:01:10.7]} 24. Qg4 {[%clk 0:00:23.9]} 24... Nxf1 {[%clk 0:01:07.9]} 25.
Kxf1 {[%clk 0:00:22.5]} 25... b4 {[%clk 0:01:06.9]} 26. h4 {[%clk 0:00:17.3]}
26... Bc6 {[%clk 0:00:54]} 27. h5 {[%clk 0:00:16.5]} 27... h6 {[%clk 0:00:45.8]}
28. Rc1 {[%clk 0:00:13.6]} 28... bxc3 {[%clk 0:00:36.3]} 29. Rxc3 {[%clk
0:00:13.8]} 29... Bxa4 {[%clk 0:00:37.8]} 30. Kg1 {[%clk 0:00:14.5]} 30... Rac8
{[%clk 0:00:30]} 31. Ng6 {[%clk 0:00:10.6]} 31... Rf7 {[%clk 0:00:31.3]} 32. Ne5
{[%clk 0:00:06]} 32... Rb7 {[%clk 0:00:32.7]} 33. Ng6 {[%clk 0:00:06.3]} 33...
Qf5 {[%clk 0:00:31.8]} 34. Qg3 {[%clk 0:00:05.7]} 34... Qxh5 {[%clk 0:00:32.5]}
35. d5 {[%clk 0:00:05.3]} 35... Qxd5 {[%clk 0:00:27.6]} 36. f5 {[%clk
0:00:03.4]} 36... Qxf5 {[%clk 0:00:19.6]} 37. Bxh6 {[%clk 0:00:03.8]} 37... Rd8
{[%clk 0:00:11.5]} 38. Be3 {[%clk 0:00:02.5]} 38... Rd1+ {[%clk 0:00:12.3]} 39.
Kh2 {[%clk 0:00:03.5]} 39... Qh5+ {[%clk 0:00:13.9]} 40. Nh4 {[%clk 0:00:04.7]}
40... Rd3 {[%clk 0:00:06]} 41. Rxd3 {[%clk 0:00:03.5]} 41... cxd3 {[%clk
0:00:06.7]} 42. Bd2 {[%clk 0:00:04]} 42... Rf7 {[%clk 0:00:06.9]} 43. Bc3 {[%clk
0:00:04.9]} 43... Bd1 {[%clk 0:00:07.1]} 44. Kg1 {[%clk 0:00:05.6]} 44... Qg4
{[%clk 0:00:07.8]} 45. Qh2 {[%clk 0:00:04]} 45... e3 {[%clk 0:00:09.4]} 46. Nf3
{[%clk 0:00:02.7]} 46... Bxf3 {[%clk 0:00:08.9]} 47. Qb8+ {[%clk 0:00:03.5]}
47... Rf8 {[%clk 0:00:10.6]} 48. Qh2 {[%clk 0:00:03.7]} 48... Qxg2+ {[%clk
0:00:11.2]} 49. Qxg2 {[%clk 0:00:04.6]} 49... Bxg2 {[%clk 0:00:13.1]} 0-1

[Event "*** MasterClass Titled Tuesday Blitz"]
[Site "Chess.com"]
[Date "2017.12.12"]
[Round "7"]
[White "Konavets"]
[Black "Vincent_Vega95"]
[Result "0-1"]
[WhiteElo "2748"]
[BlackElo "2586"]
[TimeControl "180+2"]
[EndTime "14:40:03 PST"]
[Termination "Vincent_Vega95 won by resignation"]

1. c4 {[%clk 0:03:01.9]} 1... Nf6 {[%clk 0:03:00.5]} 2. Nc3 {[%clk 0:03:03.4]}
2... g6 {[%clk 0:03:01.5]} 3. g3 {[%clk 0:03:05]} 3... Bg7 {[%clk 0:03:02.3]} 4.
Bg2 {[%clk 0:03:06.9]} 4... O-O {[%clk 0:03:03.8]} 5. e4 {[%clk 0:03:08.6]} 5...
d6 {[%clk 0:03:05.4]} 6. Nge2 {[%clk 0:03:09.9]} 6... c5 {[%clk 0:03:06.6]} 7.
O-O {[%clk 0:03:11.8]} 7... Nc6 {[%clk 0:03:08]} 8. h3 {[%clk 0:03:09.8]} 8...
Ne8 {[%clk 0:03:06.9]} 9. d3 {[%clk 0:03:08.3]} 9... Nc7 {[%clk 0:03:08]} 10. f4
{[%clk 0:03:09.9]} 10... Ne6 {[%clk 0:03:09.1]} 11. Be3 {[%clk 0:03:10.7]} 11...
a6 {[%clk 0:03:07.6]} 12. Kh2 {[%clk 0:03:12.2]} 12... Rb8 {[%clk 0:03:07.9]}
13. Rc1 {[%clk 0:03:11.5]} 13... Ned4 {[%clk 0:03:06.2]} 14. g4 {[%clk
0:03:05.5]} 14... f5 {[%clk 0:03:02.2]} 15. exf5 {[%clk 0:03:05.1]} 15... gxf5
{[%clk 0:03:03.1]} 16. g5 {[%clk 0:03:06.2]} 16... e5 {[%clk 0:02:59]} 17. Ng3
{[%clk 0:03:06.3]} 17... b5 {[%clk 0:02:49.1]} 18. b3 {[%clk 0:02:49.6]} 18...
exf4 {[%clk 0:02:44.7]} 19. Bxf4 {[%clk 0:02:47.9]} 19... Ne5 {[%clk 0:02:44.4]}
20. Nce2 {[%clk 0:02:45.8]} 20... Ng6 {[%clk 0:02:44.7]} 21. Bd5+ {[%clk
0:02:43.9]} 21... Kh8 {[%clk 0:02:44.8]} 22. Nxd4 {[%clk 0:02:43.9]} 22... Bxd4
{[%clk 0:02:40.7]} 23. Nh5 {[%clk 0:02:34.3]} 23... Nxf4 {[%clk 0:02:38.6]} 24.
Nxf4 {[%clk 0:02:35.5]} 24... Qxg5 {[%clk 0:02:37.8]} 25. Qf3 {[%clk 0:02:34.7]}
25... Be5 {[%clk 0:02:25.7]} 26. Qe3 {[%clk 0:02:35.1]} 26... Bb7 {[%clk
0:02:16.5]} 27. Rc2 {[%clk 0:01:18.2]} 27... Bxd5 {[%clk 0:02:07.4]} 28. cxd5
{[%clk 0:01:20.1]} 28... Rg8 {[%clk 0:02:06.7]} 29. Kh1 {[%clk 0:01:21.3]} 29...
Rb7 {[%clk 0:01:57.7]} 30. b4 {[%clk 0:00:58.1]} 30... cxb4 {[%clk 0:01:17.8]}
31. d4 {[%clk 0:00:28.3]} 31... Bxf4 {[%clk 0:01:16.9]} 32. Qxf4 {[%clk
0:00:29.2]} 32... Rbg7 {[%clk 0:01:06]} 33. Qxd6 {[%clk 0:00:21.8]} 33... Qh4
{[%clk 0:01:03.8]} 34. Qf4 {[%clk 0:00:13.7]} 34... Qxh3+ {[%clk 0:00:54.5]} 35.
Rh2 {[%clk 0:00:14.3]} 35... Qg4 {[%clk 0:00:50.5]} 36. Qe5 {[%clk 0:00:13.9]}
36... f4 {[%clk 0:00:41.4]} 37. d6 {[%clk 0:00:11.1]} 37... f3 {[%clk
0:00:42.5]} 38. d7 {[%clk 0:00:10]} 38... f2 {[%clk 0:00:26.9]} 39. Rxh7+ {[%clk
0:00:08.4]} 39... Kxh7 {[%clk 0:00:27.6]} 40. Qh2+ {[%clk 0:00:09.3]} 40... Kg6
{[%clk 0:00:27.1]} 41. Qd6+ {[%clk 0:00:10.5]} 41... Kh7 {[%clk 0:00:25.6]} 42.
Qh2+ {[%clk 0:00:11.4]} 42... Kg6 {[%clk 0:00:27]} 43. Qd6+ {[%clk 0:00:12.6]}
43... Kh5 {[%clk 0:00:11.1]} 44. Qe5+ {[%clk 0:00:13.5]} 44... Qg5 {[%clk
0:00:08]} 45. Rxf2 {[%clk 0:00:10.8]} 45... Qxe5 {[%clk 0:00:05.4]} 46. dxe5
{[%clk 0:00:12.2]} 46... Rxd7 {[%clk 0:00:06.2]} 47. e6 {[%clk 0:00:13.7]} 47...
Re7 {[%clk 0:00:07.1]} 48. Rh2+ {[%clk 0:00:12.5]} 48... Kg6 {[%clk 0:00:07.6]}
49. Rg2+ {[%clk 0:00:14.4]} 49... Kh7 {[%clk 0:00:09.1]} 50. Rh2+ {[%clk
0:00:15.6]} 50... Kg7 {[%clk 0:00:10.5]} 0-1

[Event "*** MasterClass Titled Tuesday Blitz"]
[Site "Chess.com"]
[Date "2017.12.12"]
[Round "7"]
[White "Sam_ChessMood"]
[Black "chessking2151"]
[Result "1/2-1/2"]
[WhiteElo "2595"]
[BlackElo "2380"]
[TimeControl "180+2"]
[EndTime "14:40:05 PST"]
[Termination "Game drawn - insufficient material"]

1. d4 {[%clk 0:03:01.9]} 1... Nf6 {[%clk 0:03:00.8]} 2. Nc3 {[%clk 0:03:03.1]}
2... d5 {[%clk 0:03:01.8]} 3. Bf4 {[%clk 0:03:04.2]} 3... c6 {[%clk 0:03:01.7]}
4. e3 {[%clk 0:03:04.8]} 4... g6 {[%clk 0:03:03.1]} 5. Nf3 {[%clk 0:03:05.2]}
5... Bg7 {[%clk 0:03:04.5]} 6. Bd3 {[%clk 0:02:59.8]} 6... Bf5 {[%clk
0:02:59.9]} 7. Bxf5 {[%clk 0:02:53.9]} 7... gxf5 {[%clk 0:02:59.5]} 8. Ne5
{[%clk 0:02:54.2]} 8... Nbd7 {[%clk 0:02:55.6]} 9. Qf3 {[%clk 0:02:52.6]} 9...
e6 {[%clk 0:02:55.1]} 10. O-O-O {[%clk 0:02:52.4]} 10... Ne4 {[%clk 0:02:46]}
11. Nxe4 {[%clk 0:02:50]} 11... fxe4 {[%clk 0:02:38.9]} 12. Qh5 {[%clk
0:02:41.9]} 12... Nxe5 {[%clk 0:02:25.6]} 13. dxe5 {[%clk 0:02:42.9]} 13... Qd7
{[%clk 0:02:10.2]} 14. f3 {[%clk 0:02:43.7]} 14... exf3 {[%clk 0:02:07.2]} 15.
gxf3 {[%clk 0:02:45.6]} 15... O-O-O {[%clk 0:02:04.9]} 16. Rhg1 {[%clk 0:02:43]}
16... f6 {[%clk 0:02:00.7]} 17. exf6 {[%clk 0:02:35.8]} 17... Bxf6 {[%clk
0:01:59.6]} 18. Be5 {[%clk 0:02:37]} 18... Bxe5 {[%clk 0:01:59.4]} 19. Qxe5
{[%clk 0:02:38]} 19... Rhf8 {[%clk 0:02:00.7]} 20. Rg7 {[%clk 0:02:36.7]} 20...
Rf7 {[%clk 0:02:01.3]} 21. Rdg1 {[%clk 0:02:37.2]} 21... Rxg7 {[%clk 0:01:07.7]}
22. Rxg7 {[%clk 0:02:36.5]} 22... Qd6 {[%clk 0:01:09.2]} 23. Qxd6 {[%clk
0:02:37.7]} 23... Rxd6 {[%clk 0:01:11.1]} 24. Rxh7 {[%clk 0:02:39.1]} 24... e5
{[%clk 0:01:10.7]} 25. Rh3 {[%clk 0:01:31.6]} 25... Rg6 {[%clk 0:01:06.6]} 26.
Rg3 {[%clk 0:01:32.6]} 26... Rh6 {[%clk 0:01:08]} 27. h3 {[%clk 0:01:33.7]}
27... Kc7 {[%clk 0:01:09.3]} 28. Kd2 {[%clk 0:01:35]} 28... b5 {[%clk
0:01:10.2]} 29. Ke2 {[%clk 0:01:35.5]} 29... Rh4 {[%clk 0:01:11.2]} 30. b3
{[%clk 0:01:32.4]} 30... Kb6 {[%clk 0:01:09]} 31. Kf2 {[%clk 0:01:32.4]} 31...
Kc5 {[%clk 0:01:10.1]} 32. Kg2 {[%clk 0:01:32.6]} 32... Rh7 {[%clk 0:01:07]} 33.
Rg5 {[%clk 0:01:28]} 33... Kb4 {[%clk 0:01:01.8]} 34. Rxe5 {[%clk 0:01:27.6]}
34... Ka3 {[%clk 0:00:58.2]} 35. Re6 {[%clk 0:01:22.8]} 35... Rc7 {[%clk
0:00:46]} 36. Kf2 {[%clk 0:00:43.3]} 36... Kxa2 {[%clk 0:00:44.9]} 37. Ke2
{[%clk 0:00:44.6]} 37... Kb2 {[%clk 0:00:46.5]} 38. Kd2 {[%clk 0:00:43.4]} 38...
a5 {[%clk 0:00:41.6]} 39. Re8 {[%clk 0:00:44.5]} 39... Ra7 {[%clk 0:00:35.8]}
40. Rc8 {[%clk 0:00:42]} 40... a4 {[%clk 0:00:29.1]} 41. bxa4 {[%clk 0:00:40.7]}
41... bxa4 {[%clk 0:00:30.5]} 42. Rxc6 {[%clk 0:00:40.8]} 42... Rb7 {[%clk
0:00:27.6]} 43. Ra6 {[%clk 0:00:40.1]} 43... a3 {[%clk 0:00:28.6]} 44. Kd3
{[%clk 0:00:35.8]} 44... a2 {[%clk 0:00:28.5]} 45. Kd4 {[%clk 0:00:34]} 45...
Rc7 {[%clk 0:00:10.4]} 46. Kxd5 {[%clk 0:00:16.6]} 46... Rc3 {[%clk 0:00:10.6]}
47. Rxa2+ {[%clk 0:00:16.7]} 47... Kxa2 {[%clk 0:00:11.7]} 48. f4 {[%clk
0:00:16.7]} 48... Rxe3 {[%clk 0:00:11.4]} 49. f5 {[%clk 0:00:17]} 49... Rxh3
{[%clk 0:00:08.4]} 50. f6 {[%clk 0:00:18.1]} 50... Rf3 {[%clk 0:00:09.5]} 51.
Ke6 {[%clk 0:00:18.5]} 51... Ka3 {[%clk 0:00:10.2]} 52. f7 {[%clk 0:00:18.3]}
52... Kb4 {[%clk 0:00:11.4]} 53. Ke7 {[%clk 0:00:19.5]} 53... Kc3 {[%clk
0:00:12.5]} 54. f8=Q {[%clk 0:00:20]} 54... Rxf8 {[%clk 0:00:14]} 55. Kxf8
{[%clk 0:00:21.5]} 55... Kxc2 {[%clk 0:00:15.9]} 1/2-1/2

[Event "*** MasterClass Titled Tuesday Blitz"]
[Site "Chess.com"]
[Date "2017.12.12"]
[Round "7"]
[White "tteshan"]
[Black "Enzy63"]
[Result "0-1"]
[WhiteElo "2021"]
[BlackElo "2090"]
[TimeControl "180+2"]
[EndTime "14:40:25 PST"]
[Termination "Enzy63 won by resignation"]

1. e4 {[%clk 0:03:01.5]} 1... e5 {[%clk 0:03:00.5]} 2. Nf3 {[%clk 0:03:02.3]}
2... Nc6 {[%clk 0:03:01.5]} 3. Bb5 {[%clk 0:03:03.8]} 3... a6 {[%clk 0:03:02.1]}
4. Ba4 {[%clk 0:03:04.6]} 4... Nf6 {[%clk 0:03:03.1]} 5. O-O {[%clk 0:03:05.2]}
5... Be7 {[%clk 0:03:04.1]} 6. Re1 {[%clk 0:03:05.1]} 6... b5 {[%clk 0:03:05.1]}
7. Bb3 {[%clk 0:03:05.6]} 7... d6 {[%clk 0:03:06.6]} 8. c3 {[%clk 0:03:05.7]}
8... O-O {[%clk 0:03:08.1]} 9. d4 {[%clk 0:03:06.3]} 9... Bg4 {[%clk 0:03:07.9]}
10. Be3 {[%clk 0:02:53.1]} 10... exd4 {[%clk 0:02:59]} 11. cxd4 {[%clk
0:02:52.6]} 11... Na5 {[%clk 0:03:00.6]} 12. Bc2 {[%clk 0:02:50.9]} 12... c5
{[%clk 0:03:00.9]} 13. d5 {[%clk 0:02:47.5]} 13... Nc4 {[%clk 0:02:53.1]} 14.
Bc1 {[%clk 0:02:30.9]} 14... Nd7 {[%clk 0:02:53.7]} 15. Nbd2 {[%clk 0:02:27.1]}
15... Bf6 {[%clk 0:02:35.7]} 16. Nxc4 {[%clk 0:02:24]} 16... bxc4 {[%clk
0:02:37.6]} 17. h3 {[%clk 0:02:25]} 17... Bxf3 {[%clk 0:02:33.7]} 18. Qxf3
{[%clk 0:02:24.4]} 18... Rb8 {[%clk 0:02:34.5]} 19. Qa3 {[%clk 0:02:20.7]} 19...
Qb6 {[%clk 0:02:26.8]} 20. Rb1 {[%clk 0:02:19.2]} 20... Qb4 {[%clk 0:02:27]} 21.
Qxb4 {[%clk 0:02:16.7]} 21... cxb4 {[%clk 0:02:28.9]} 22. Be3 {[%clk 0:02:14.4]}
22... Rfc8 {[%clk 0:02:28]} 23. Ba4 {[%clk 0:02:11.6]} 23... Ne5 {[%clk
0:02:12]} 24. f4 {[%clk 0:01:56.1]} 24... Nd3 {[%clk 0:02:07.5]} 25. Re2 {[%clk
0:01:57.6]} 25... c3 {[%clk 0:01:55.9]} 26. bxc3 {[%clk 0:01:50.2]} 26... bxc3
{[%clk 0:01:56.7]} 27. Bc2 {[%clk 0:01:44.1]} 27... Nb4 {[%clk 0:01:43.7]} 28.
Rd1 {[%clk 0:01:26.5]} 28... Nxa2 {[%clk 0:01:32.8]} 29. g4 {[%clk 0:01:26.9]}
29... Nb4 {[%clk 0:01:27.2]} 30. g5 {[%clk 0:01:25.8]} 30... Be7 {[%clk
0:01:20.8]} 31. e5 {[%clk 0:01:26]} 31... Nxc2 {[%clk 0:01:17.7]} 32. Rxc2
{[%clk 0:01:26.4]} 32... Rb2 {[%clk 0:01:17.5]} 33. Rdc1 {[%clk 0:01:26]} 33...
Rxc2 {[%clk 0:01:16.1]} 34. Rxc2 {[%clk 0:01:27]} 34... dxe5 {[%clk 0:01:14.4]}
35. fxe5 {[%clk 0:01:27.3]} 35... Bb4 {[%clk 0:01:12.8]} 36. d6 {[%clk 0:01:25]}
36... Kf8 {[%clk 0:01:11.4]} 37. Bb6 {[%clk 0:01:23.2]} 37... Ke8 {[%clk
0:01:09.4]} 38. Kf1 {[%clk 0:01:19.4]} 38... Kd7 {[%clk 0:01:08.6]} 39. Ke2
{[%clk 0:01:19]} 39... Re8 {[%clk 0:01:09.3]} 40. Bd4 {[%clk 0:01:17.7]} 40...
f6 {[%clk 0:01:10.2]} 41. gxf6 {[%clk 0:01:13.9]} 41... gxf6 {[%clk 0:01:12.1]}
42. Kd3 {[%clk 0:01:14.1]} 42... fxe5 {[%clk 0:01:12.2]} 43. Bxc3 {[%clk
0:01:13.9]} 43... Bxc3 {[%clk 0:01:11]} 44. Rxc3 {[%clk 0:01:15]} 44... Kxd6
{[%clk 0:01:12]} 45. Ra3 {[%clk 0:01:11.6]} 45... Ra8 {[%clk 0:01:07.4]} 46. Ke4
{[%clk 0:01:12.5]} 46... a5 {[%clk 0:01:07.7]} 47. Ra4 {[%clk 0:01:12.7]} 47...
Ke6 {[%clk 0:01:07.4]} 48. Ra1 {[%clk 0:01:00.3]} 48... a4 {[%clk 0:01:05.1]}
49. Ra3 {[%clk 0:00:57.1]} 49... Ra7 {[%clk 0:01:00.2]} 50. h4 {[%clk
0:00:55.9]} 50... h5 {[%clk 0:00:56.9]} 51. Rg3 {[%clk 0:00:48]} 51... a3 {[%clk
0:00:49.1]} 52. Rg6+ {[%clk 0:00:41.9]} 52... Kf7 {[%clk 0:00:49.7]} 53. Rg1
{[%clk 0:00:41]} 53... a2 {[%clk 0:00:49.7]} 54. Ra1 {[%clk 0:00:41.4]} 54...
Ke6 {[%clk 0:00:50.7]} 55. Ke3 {[%clk 0:00:38.7]} 55... Ra4 {[%clk 0:00:49.1]}
56. Kf3 {[%clk 0:00:37.6]} 56... Kf5 {[%clk 0:00:49.9]} 57. Ke3 {[%clk
0:00:35.9]} 57... Ra3+ {[%clk 0:00:50.5]} 58. Ke2 {[%clk 0:00:35.2]} 58... e4
{[%clk 0:00:51]} 59. Rf1+ {[%clk 0:00:34.9]} 59... Ke5 {[%clk 0:00:51.1]} 60.
Ra1 {[%clk 0:00:35.5]} 60... Kd4 {[%clk 0:00:50.4]} 61. Kd2 {[%clk 0:00:35.4]}
61... e3+ {[%clk 0:00:49.8]} 62. Ke2 {[%clk 0:00:35.8]} 62... Kc3 {[%clk
0:00:49.1]} 63. Rc1+ {[%clk 0:00:31.5]} 63... Kb2 {[%clk 0:00:48.9]} 64. Rc3
{[%clk 0:00:23.6]} 64... Kxc3 {[%clk 0:00:47.7]} 65. Kxe3 {[%clk 0:00:22.9]}
65... a1=Q {[%clk 0:00:48.6]} 0-1